fUST/lending_fUST_20251117
["ID","MTS","AMOUNT","RATE_DAILY","PERIOD"]
[394137148,1763316644290,-200.0,0.00024658,20]
[394137149,1763316644300,-200.0,0.00024658,20]
[394137150,1763316644310,-200.0,0.00024658,20]
[394137151,1763316644319,-200.0,0.00024658,20]
[394137152,1763316644328,-200.0,0.00024658,20]
[394137153,1763316644338,-200.0,0.00024658,2]
[394137154,1763316644348,-380.0,0.00024658,2]
[394137155,1763316644357,-150.0,0.00024673,2]
[394137156,1763316644367,-150.0,0.00024673,2]
[394137157,1763316644376,-249.25123704,0.00024721,2]
[394137158,1763316644386,-208.02,0.00024724,2]
[394137159,1763316644395,-500.0,0.00024773,2]
[394137160,1763316644404,-16751.38427814,0.00024774,2]
[394137161,1763316644414,-75558.2866457,0.000248,2]
[394137162,1763316644423,-160.173842,0.00024824,2]
[394137163,1763316644432,-202.65,0.00024899,2]
[394137164,1763316644442,-151.0,0.000249,7]
[394137165,1763316644459,-152.71732,0.000249,7]
[394137166,1763316644473,-151.0,0.000249,7]
[394137167,1763316644483,-151.0,0.000249,7]
[394137168,1763316644495,-182.467958,0.000249,7]
[394137169,1763316644505,-151.0,0.000249,7]
[394137170,1763316644514,-151.0,0.000249,7]
[394137171,1763316644523,-151.0,0.000249,7]
[394137172,1763316644533,-151.0,0.000249,7]
[394137173,1763316644542,-151.0,0.000249,2]
[394137174,1763316644552,-151.0,0.000249,7]
[394137175,1763316644561,-151.0,0.000249,7]
[394137176,1763316644570,-151.0,0.000249,7]
[394137177,1763316644582,-151.0,0.000249,7]
[394137178,1763316644591,-757741.360178,0.000249,2]
[394137179,1763316644601,-151.0,0.000249,7]
[394137180,1763316644610,-62965.2388714,0.0002499,2]
[394137181,1763316644619,-407.7664895,0.00025,2]
[394137182,1763316644628,-51314.24269192,0.00025,15]
[394137183,1763316644638,-118981.74455502,0.00025,2]
[394137184,1763316644647,-976.40429262,0.00025,2]
[394137185,1763316644656,-54764.76708081,0.00025,5]
[394137186,1763316644666,-151.0,0.00025,7]
[394137187,1763316644676,-166.0,0.00025,7]
[394137188,1763316644685,-151.0,0.00025037,2]
[394137189,1763316644695,-151.0,0.00025037,7]
[394137190,1763316644704,-269.36835571,0.00025051,2]
[394137191,1763316644714,-207.796352,0.00025073,2]
[394137192,1763316644723,-151.0,0.00025174,2]
[394137193,1763316644733,-151.0,0.00025174,7]
[394137194,1763316644743,-151.0,0.00025197,7]
[394137195,1763316644753,-985.89,0.00025205,2]
[394137196,1763316644762,-250.0,0.00025221,2]
[394137197,1763316644771,-300.0,0.00025221,2]
[394137198,1763316644780,-160.173842,0.00025245,3]
[394137199,1763316644790,-151.0,0.00025288,7]
[394137200,1763316644799,-629.0,0.00025289,2]
[394137201,1763316644808,-2149.0,0.00025289,2]
[394137202,1763316644817,-151.0,0.00025311,2]
[394137203,1763316644827,-206.54803364,0.00025311,7]
[394137204,1763316644836,-1000.0,0.00025321,2]
[394137205,1763316644845,-160.0,0.00025375,2]
[394137206,1763316644854,-151.0,0.00025448,2]
[394137207,1763316644863,-900.0,0.00025469,3]
[394137208,1763316644872,-162.883398,0.00025469,7]
[394137209,1763316644881,-151.0,0.00025469,7]
[394137210,1763316644891,-151.0,0.00025469,7]
[394137211,1763316644900,-151.0,0.00025469,7]
[394137212,1763316644909,-151.0,0.00025469,7]
[394137213,1763316644918,-228.09116291,0.00025585,2]
[394137214,1763316644928,-12593.0477743,0.0002569,2]
[394137215,1763316644937,-225.688191,0.0002569,7]
[394137216,1763316644946,-225.688191,0.0002569,7]
[394137217,1763316644955,-225.688191,0.0002569,7]
[394137218,1763316644964,-225.688191,0.0002569,7]
[394137219,1763316644973,-151.0,0.0002569,7]
[394137220,1763316645058,-151.0,0.0002569,7]
[394137221,1763316645082,-151.0,0.0002569,7]
[394137222,1763316645092,-151.0,0.0002569,7]
[394137223,1763316645101,-151.0,0.0002569,7]
[394137224,1763316645111,-151.0,0.0002569,7]
[394137225,1763316645120,-253.109603,0.0002569,7]
[394137226,1763316645130,-151.0,0.0002569,7]
[394137227,1763316645140,-151.0,0.0002569,7]
[394137228,1763316645150,-151.0,0.0002569,7]
[394137229,1763316645160,-151.0,0.0002569,7]
[394137230,1763316645170,-228.356677,0.0002569,7]
[394137231,1763316645179,-151.0,0.0002569,7]
[394137232,1763316645189,-567.24590204,0.000257,2]
[394137233,1763316645198,-1689.73,0.000257,14]
[394137234,1763316645207,-13203.78,0.000257,7]
[394137235,1763316645217,-350.0,0.00025768,2]
[394137236,1763316645226,-303.05066118,0.00025768,2]
[394137237,1763316645236,-295.0,0.00025775,7]
[394137238,1763316645247,-1500.0,0.00025868,2]
[394137239,1763316645256,-260.0,0.00025923,2]
[394137240,1763316645266,-556.96451386,0.00026001,7]
[394137241,1763316645275,-12818.24821908,0.00026143,2]
[394137242,1763316645285,-420.0,0.00026165,2]
[394137243,1763316645294,-985.89,0.00026301,2]
[394137244,1763316645303,-450.0,0.00026316,2]
[394137245,1763316645313,-6214.4424842,0.00026334,2]
[394137246,1763316645322,-1660.21177146,0.00026416,2]
[394137248,1763316645332,-227.0411628,0.00026425,30]
[394137249,1763316645341,-360.0,0.00026471,2]
[394137250,1763316645350,-324.4820267,0.00026538,2]
[394137251,1763316645360,-509.43,0.000266,7]
[394137252,1763316645369,-486.15580428,0.00026602,2]
[394137253,1763316645379,-905.392276,0.00026676,2]
[394137254,1763316645388,-11811.82989439,0.00026685,2]
[394137281,1763316646105,-781.21787991,0.00026685,2]
[394137283,1763316646115,-191.36288027,0.00026727,2]
[394137288,1763316646333,-1808.63711973,0.00026727,2]
[394137289,1763316646342,-151.0,0.00026727,7]
[394137290,1763316646352,-151.0,0.00026727,7]
[394137291,1763316646361,-151.0,0.00026727,7]
[394137292,1763316646370,-151.0,0.00026727,7]
[394137293,1763316646379,-142.11056927,0.00026727,7]
[394137294,1763316646390,-123.75323473,0.00026727,7]
[394137295,1763316646399,-151.0,0.00026727,2]
[394137296,1763316646409,-901.652281,0.00026727,7]
[394137297,1763316646418,-151.0,0.00026727,7]
[394137298,1763316646427,-151.0,0.00026727,2]
[394137299,1763316646436,-901.652281,0.00026727,7]
[394137300,1763316646446,-319.94220327,0.00026727,7]
[394137305,1763316843727,203.58,0.00019,10]
[394137325,1763317022731,300.0,0.00017528,2]
[394137326,1763317082797,300.0,0.00017528,2]
[394137328,1763317143063,300.0,0.00017528,2]
[394137329,1763317202985,300.0,0.00017528,2]
[394137330,1763317204562,850.0,0.00017529,2]
[394137332,1763317263042,300.0,0.00017528,2]
[394137333,1763317323289,300.0,0.00017528,2]
[394137334,1763317344874,81207.96959074,0.00038006,120]
[394137335,1763317383863,300.0,0.00017528,2]
[394137336,1763317443902,300.0,0.00017528,2]
[394137337,1763317502377,300.0,0.00017528,2]
[394137339,1763317599113,-216.68123857,0.00017529,2]
[394137344,1763317623553,300.0,0.00017528,2]
[394137352,1763317683474,300.0,0.00017528,2]
[394137362,1763317722298,1555.72319581,0.0001,2]
[394137364,1763317742945,300.0,0.00017528,2]
[394137365,1763317747163,-771.31876143,0.00017529,2]
[394137366,1763317747189,-2149.0,0.00017529,2]
[394137367,1763317747213,-629.0,0.00017529,2]
[394137368,1763317747236,-176.38214114,0.00017529,2]
[394137370,1763317804935,850.0,0.00017529,2]
[394137371,1763317812251,250.0,0.00038018,120]
[394137372,1763317812823,250.0,0.00038018,120]
[394137373,1763317813426,250.0,0.00038018,120]
[394137374,1763317814125,250.0,0.00038018,120]
[394137375,1763317814653,250.0,0.00038018,120]
[394137376,1763317815278,250.0,0.00038018,120]
[394137377,1763317816342,250.0,0.00038018,120]
[394137378,1763317817066,250.0,0.00038018,120]
[394137379,1763317817818,250.0,0.00038018,120]
[394137380,1763317818457,250.0,0.00038018,120]
[394137381,1763317819066,250.0,0.00038018,120]
[394137382,1763317819688,250.0,0.00038018,120]
[394137408,1763317832073,-236.61785886,0.00017529,2]
[394137410,1763317832083,-77.49293649,0.00017904,2]
[394137525,1763317837971,-87.01776081,0.00017904,2]
[394137527,1763317837981,-194.12262281,0.00019904,2]
[394137529,1763317837990,-300.0,0.00020528,2]
[394137531,1763317837999,-2149.0,0.00020529,2]
[394137533,1763317838008,-629.0,0.00020529,2]
[394137535,1763317838018,-413.0,0.00020529,2]
[394137538,1763317838028,-270.44678137,0.00021883,2]
[394137542,1763317838038,-223.73454832,0.00021904,2]
[394137544,1763317838047,-189.868035,0.00022146,2]
[394137547,1763317838056,-623.78212091,0.00022263,2]
[394137550,1763317838065,-420.0,0.00022341,2]
[394137553,1763317838076,-3233.83974169,0.00022341,2]
[394137554,1763317838085,-87.81575586,0.0002261,2]
[394138061,1763317843337,-878.54140114,0.0002261,2]
[394138063,1763317843347,-1122.80781764,0.00023213,2]
[394138065,1763317843356,-400.59295362,0.0002349,2]
[394138067,1763317843365,-1025.35782761,0.00023529,2]
[394139704,1763317866883,-1123.64217239,0.00023529,2]
[394139705,1763317866893,-620.178,0.00023529,2]
[394139706,1763317866904,-413.0,0.00023529,2]
[394139707,1763317866914,-155.749109,0.00023562,10]
[394139708,1763317866923,-253.34647384,0.00023904,2]
[394139709,1763317866933,-155.749109,0.00024,2]
[394139710,1763317866943,-155.749109,0.00024,5]
[394139711,1763317866952,-202.09054235,0.0002404,2]
[394139712,1763317866961,-343.27785428,0.0002404,2]
[394139713,1763317866971,-12218.39733934,0.00024041,2]
[394139714,1763317866980,-320.3616783,0.00024142,2]
[394139715,1763317866991,-1996.10278692,0.00024164,2]
[394139716,1763317867000,-587.0,0.00024314,2]
[394139717,1763317867010,-366.12763235,0.00024629,2]
[394139718,1763317867019,-380.0,0.00024658,2]
[394139719,1763317867029,-155.749109,0.000248,3]
[394139720,1763317867038,-177.0,0.00025,7]
[394139721,1763317867047,-3118.91060457,0.00025114,2]
[394139722,1763317867056,-270.44678137,0.00025604,2]
[394139723,1763317867065,-500.0,0.00025878,2]
[394139724,1763317867075,-500.0,0.00025878,2]
[394139725,1763317867084,-151.0,0.00025878,2]
[394139726,1763317867094,-177.0,0.0002589,7]
[394139727,1763317867103,-282.95839935,0.00025904,2]
[394139728,1763317867112,-160.0,0.00026,2]
[394139729,1763317867122,-500.0,0.00026015,2]
[394139730,1763317867131,-500.0,0.00026015,2]
[394139731,1763317867141,-151.0,0.00026015,2]
[394139732,1763317867150,-500.0,0.00026152,2]
[394139733,1763317867160,-500.0,0.00026152,2]
[394139734,1763317867170,-151.0,0.00026152,2]
[394139735,1763317867179,-275.12503636,0.00026289,2]
[394139736,1763317867189,-500.0,0.00026289,2]
[394139737,1763317867199,-151.0,0.00026289,2]
[394139738,1763317867210,-150.0,0.00026424,30]
[394139739,1763317867219,-500.0,0.00026426,2]
[394139740,1763317867229,-245.0,0.00026426,2]
[394139741,1763317867240,-1865.39689086,0.00026456,2]
[394139742,1763317867249,-645.0,0.0002646,2]
[394139743,1763317867259,-400.59295362,0.00026488,10]
[394139744,1763317867268,-2710.12,0.00026488,10]
[394139745,1763317867278,-500.0,0.00026497,2]
[394139746,1763317867287,-474.33412117,0.00026497,2]
[394139747,1763317867297,-500.0,0.00026497,2]
[394139748,1763317867307,-903.73,0.00026497,2]
[394139749,1763317867317,-214693.385384,0.00026498,2]
[394139750,1763317867330,-4407.56672101,0.00026498,2]
[394139751,1763317867340,-52948.5931494,0.00026508,2]
[394139752,1763317867349,-626.88006027,0.00026519,7]
[394139753,1763317867359,-2149.0,0.00026529,2]
[394139754,1763317867368,-413.0,0.00026529,2]
[394139755,1763317867378,-260.0,0.00026548,2]
[394139756,1763317867388,-429386.770768,0.00026553,2]
[394139757,1763317867398,-17630.266884,0.00026553,2]
[394139758,1763317867407,-500.0,0.00026563,2]
[394139759,1763317867417,-44075.6672101,0.00026667,2]
[394139760,1763317867426,-500.0,0.000267,2]
[394139761,1763317867436,-18161.98,0.000267,7]
[394139762,1763317867446,-400.59295362,0.000267,7]
[394139763,1763317867455,-150.0,0.00026726,2]
[394139764,1763317867465,-150.0,0.00026726,7]
[394139765,1763317867475,-191.36288027,0.00026727,2]
[394139766,1763317867484,-500.0,0.00026837,2]
[394139767,1763317867580,-500.0,0.00026974,2]
[394139768,1763317867591,-1576.0,0.00027,2]
[394139769,1763317867601,-360.0,0.00027096,2]
[394139770,1763317867610,-500.0,0.00027111,2]
[394139771,1763317867620,-177.0,0.00027185,7]
[394139772,1763317867629,-500.0,0.00027248,2]
[394139773,1763317867639,-4407.56672101,0.00027357,2]
[394139774,1763317867648,-500.0,0.00027385,2]
[394139775,1763317867657,-1000.0,0.00027386,7]
[394139776,1763317867667,-1000.0,0.00027386,7]
[394139777,1763317867677,-1000.0,0.00027386,7]
[394139778,1763317867686,-1000.0,0.00027386,7]
[394139779,1763317867696,-1000.0,0.00027386,7]
[394139780,1763317867705,-1000.0,0.00027386,7]
[394139781,1763317867714,-1000.0,0.00027386,7]
[394139782,1763317867724,-1000.0,0.00027386,7]
[394139783,1763317867734,-1000.0,0.00027386,7]
[394139784,1763317867744,-1000.0,0.00027386,7]
[394139785,1763317867753,-1000.0,0.00027386,7]
[394139786,1763317867763,-1000.0,0.00027386,7]
[394139787,1763317867773,-686.28478833,0.00027386,7]
[394139788,1763317867783,-199.62908314,0.0002739,2]
[394139789,1763317867792,-150.0,0.0002739,2]
[394139790,1763317867801,-437.0,0.00027397,2]
[394139791,1763317867811,-1000.0,0.00027397,2]
[394139792,1763317867821,-1000.0,0.00027397,2]
[394139793,1763317867833,-1000.0,0.00027397,2]
[394139794,1763317867843,-1000.0,0.00027397,2]
[394139795,1763317867852,-1000.0,0.00027397,2]
[394139796,1763317867863,-1000.0,0.00027397,2]
[394139797,1763317867872,-1000.0,0.00027397,2]
[394139798,1763317867881,-981.75958161,0.00027397,2]
[394139799,1763317867890,-150.0,0.00027397,2]
[394139800,1763317867899,-300.0,0.00027397,2]
[394139801,1763317867910,-450.0,0.00027397,2]
[394139802,1763317867919,-600.0,0.00027397,2]
[394139803,1763317867929,-750.0,0.00027397,2]
[394139804,1763317867938,-818.0914788,0.00027397,2]
[394139805,1763317867947,-3838.54,0.000274,2]
[394139806,1763317867956,-313.56047392,0.00027471,7]
[394139807,1763317867965,-150.0,0.00027473,5]
[394139808,1763317867974,-4407.56672101,0.0002749,2]
[394139809,1763317867983,-28753.75663527,0.000275,2]
[394139810,1763317867994,-407.54,0.000275,7]
[394139811,1763317868004,-500.0,0.00027522,2]
[394139812,1763317868013,-437.0,0.00027534,2]
[394139813,1763317868023,-903.73,0.00027593,2]
[394139814,1763317868033,-600.0,0.00027641,30]
[394139815,1763317868042,-460.0,0.00027644,2]
[394139816,1763317868051,-500.0,0.00027659,2]
[394139817,1763317868061,-437.0,0.00027671,2]
[394139818,1763317868070,-500.0,0.00027796,2]
[394139819,1763317868080,-437.0,0.00027808,2]
[394139820,1763317868089,-312.57032486,0.00027904,2]
[394139821,1763317868099,-500.0,0.00027933,2]
[394139822,1763317868109,-437.0,0.00027945,2]
[394139823,1763317868118,-150.0,0.00027973,5]
[394139824,1763317868128,-4407.56672101,0.0002799,2]
[394139825,1763317868138,-15259.25952783,0.00028,2]
[394139826,1763317868147,-2155.09903521,0.00028,2]
[394139827,1763317868157,-18161.98,0.00028,7]
[394139828,1763317868166,-400.59295362,0.00028,7]
[394139829,1763317868176,-250.0,0.00028021,5]
[394139830,1763317868185,-500.0,0.0002807,2]
[394139831,1763317868195,-437.0,0.00028082,2]
[394139832,1763317868205,-560.0,0.00028192,2]
[394139833,1763317868215,-500.0,0.00028207,2]
[394139834,1763317868224,-437.0,0.00028219,2]
[394139835,1763317868235,-221.52945362,0.00028223,2]
[394139836,1763317868245,-3838.54,0.000283,2]
[394139837,1763317868255,-2505.01272083,0.00028314,7]
[394139838,1763317868264,-252.0,0.00028344,2]
[394139839,1763317868275,-437.0,0.00028356,2]
[394139840,1763317868285,-8815.13344202,0.0002849,2]
[394139841,1763317868295,-151.0,0.0002849,7]
[394139842,1763317868305,-151.0,0.0002849,7]
[394139843,1763317868315,-151.0,0.0002849,7]
[394139844,1763317868325,-180.550553,0.0002849,7]
[394139845,1763317868335,-180.550553,0.0002849,7]
[394139846,1763317868345,-180.550553,0.0002849,7]
[394139847,1763317868356,-180.550553,0.0002849,7]
[394139848,1763317868366,-151.0,0.0002849,2]
[394139849,1763317868376,-8925.31577,0.0002849,7]
[394139850,1763317868386,-8925.31577,0.0002849,7]
[394139851,1763317868395,-8925.31577,0.0002849,7]
[394139852,1763317868405,-8925.31577,0.0002849,7]
[394139853,1763317868414,-151.0,0.0002849,7]
[394139854,1763317868423,-151.0,0.0002849,7]
[394139855,1763317868434,-151.0,0.0002849,7]
[394139856,1763317868444,-224.341349,0.0002849,7]
[394139857,1763317868453,-151.0,0.0002849,7]
[394139858,1763317868462,-151.0,0.0002849,7]
[394139859,1763317868472,-437.0,0.00028493,2]
[394139860,1763317868482,-94370.05631942,0.000285,7]
[394139861,1763317868491,-1351.78,0.000285,14]
[394139862,1763317868500,-151.0,0.000285,7]
[394139863,1763317868510,-198.731703,0.000285,7]
[394139864,1763317868520,-151.0,0.000285,7]
[394139865,1763317868531,-151.0,0.000285,7]
[394139866,1763317868541,-151.0,0.000285,7]
[394139867,1763317868550,-151.0,0.000285,7]
[394139868,1763317868560,-151.0,0.000285,7]
[394139869,1763317868570,-151.0,0.000285,7]
[394139870,1763317868580,-190.103155,0.000285,7]
[394139871,1763317868590,-190.103155,0.000285,7]
[394139872,1763317868600,-190.103155,0.000285,7]
[394139873,1763317868609,-190.103155,0.000285,7]
[394139874,1763317868618,-400.59295362,0.000285,7]
[394139875,1763317868628,-250.0,0.00028521,5]
[394139876,1763317868637,-350.0,0.00028568,5]
[394139877,1763317868647,-437.0,0.0002863,2]
[394139878,1763317868656,-903.73,0.00028689,2]
[394139879,1763317868666,-407.54,0.000287,7]
[394139880,1763317868676,-660.0,0.0002874,2]
[394139881,1763317868685,-4000.0,0.0002876,5]
[394139882,1763317868695,-26750.16924559,0.0002876,2]
[394139883,1763317868704,-151.0,0.0002876,7]
[394139884,1763317868714,-151.0,0.0002876,7]
[394139885,1763317868723,-151.0,0.0002876,7]
[394139886,1763317868733,-151.0,0.0002876,7]
[394139887,1763317868742,-445.202353,0.0002876,7]
[394139888,1763317868752,-445.202353,0.0002876,7]
[394139889,1763317868763,-445.202353,0.0002876,7]
[394139890,1763317868773,-445.202353,0.0002876,7]
[394139891,1763317868783,-437.0,0.00028767,2]
[394139892,1763317868792,-500.0,0.00028773,5]
[394139893,1763317868801,-150.0,0.00028773,5]
[394139894,1763317868811,-437.0,0.00028904,2]
[394139895,1763317868821,-437.0,0.00029041,2]
[394139896,1763317868833,-350.0,0.00029068,5]
[394139897,1763317868842,-450.0,0.00029116,5]
[394139898,1763317868852,-437.0,0.00029178,2]
[394139899,1763317868863,-6214.4424842,0.0002918,2]
[394139900,1763317868872,-3838.54,0.000292,2]
[394139901,1763317868882,-760.0,0.00029288,2]
[394139902,1763317868893,-18161.98,0.000293,7]
[394139903,1763317868902,-151.0,0.000293,7]
[394139904,1763317868911,-151.0,0.000293,7]
[394139905,1763317868921,-151.0,0.000293,7]
[394139906,1763317868930,-437.0,0.00029315,2]
[394139907,1763317868940,-1000.0,0.00029321,5]
[394139908,1763317868949,-250.0,0.00029321,5]
[394139909,1763317868959,-270.71722816,0.00029325,2]
[394139910,1763317868969,-2031.76494639,0.0002939,5]
[394139911,1763317868978,-437.0,0.00029452,2]
[394139912,1763317868988,-2149.0,0.00029529,2]
[394139913,1763317868998,-413.0,0.00029529,2]
[394139914,1763317869007,-212.59692928,0.00029558,2]
[394139915,1763317869017,-437.0,0.00029589,2]
[394139916,1763317869026,-1351.78,0.000296,14]
[394139917,1763317869036,-450.0,0.00029616,5]
[394139918,1763317869045,-210.55300479,0.00029644,14]
[394139919,1763317869054,-550.0,0.00029664,5]
[394139920,1763317869063,-437.0,0.00029726,2]
[394139921,1763317869073,-903.73,0.00029785,2]
[394139922,1763317869083,-860.0,0.00029836,2]
[394139923,1763317869094,-437.0,0.00029863,2]
[394139924,1763317869103,-1324.71971835,0.00029868,5]
[394139925,1763317869114,-350.0,0.00029868,5]
[394139926,1763317869124,-407.54,0.000299,7]
[394139927,1763317869135,-177.0,0.00029903,14]
[394139928,1763317869145,-342.18225038,0.00029904,2]
[394139929,1763317869155,-2000.0,0.00029972,7]
[394139930,1763317869165,-151.0,0.00029995,7]
[394139931,1763317869175,-151.0,0.00029995,7]
[394139932,1763317869185,-151.0,0.00029995,7]
[394139933,1763317869195,-180.550553,0.00029995,7]
[394139934,1763317869205,-180.550553,0.00029995,7]
[394139935,1763317869215,-180.550553,0.00029995,7]
[394139936,1763317869225,-180.550553,0.00029995,7]
[394139937,1763317869234,-151.0,0.00029995,2]
[394139938,1763317869245,-8925.31577,0.00029995,7]
[394139939,1763317869254,-8925.31577,0.00029995,7]
[394139940,1763317869264,-8925.31577,0.00029995,7]
[394139941,1763317869273,-8925.31577,0.00029995,7]
[394139942,1763317869282,-151.0,0.00029995,7]
[394139943,1763317869292,-151.0,0.00029995,7]
[394139944,1763317869301,-151.0,0.00029995,7]
[394139945,1763317869311,-151.0,0.00029995,7]
[394139946,1763317869321,-437.0,0.0003,2]
[394139947,1763317869330,-7682.38218535,0.0003,5]
[394139948,1763317869339,-165.46,0.0003,5]
[394139949,1763317869349,-418.5017434,0.0003,2]
[394139950,1763317869358,-14343.33656224,0.0003,2]
[394139951,1763317869367,-160.0,0.0003,7]
[394139952,1763317869377,-5000.0,0.0003,16]
[394139953,1763317869386,-20729.81463503,0.0003,2]
[394139954,1763317869396,-65000.0,0.0003,2]
[394139955,1763317869405,-3838.54,0.0003,2]
[394139956,1763317869414,-3435.85613379,0.0003,10]
[394139957,1763317869424,-2184.36562635,0.0003013,5]
[394139958,1763317869513,-868.8578292,0.0003013,15]
[394139959,1763317869523,-437.0,0.00030137,2]
[394139960,1763317869532,-300.0,0.00030137,5]
[394139961,1763317869542,-151.0,0.00030137,31]
[394139962,1763317869551,-151.0,0.00030137,31]
[394139963,1763317869560,-151.0,0.00030137,31]
[394139964,1763317869569,-151.0,0.00030137,31]
[394139965,1763317869579,-550.0,0.00030164,5]
[394139966,1763317869588,-650.0,0.00030212,5]
[394139967,1763317869597,-437.0,0.00030274,2]
[394139968,1763317869607,-960.0,0.00030384,2]
[394139969,1763317869617,-720.0,0.00030405,30]
[394139970,1763317869626,-437.0,0.00030411,2]
[394139971,1763317869635,-450.0,0.00030416,5]
[394139972,1763317869645,-454.74857223,0.00030548,2]
[394139973,1763317869655,-151.0,0.00030548,31]
[394139974,1763317869664,-151.0,0.00030548,31]
[394139975,1763317869674,-151.0,0.00030548,31]
[394139976,1763317869683,-151.0,0.00030548,31]
[394139977,1763317869692,-151.0,0.00030548,31]
[394139978,1763317869702,-151.0,0.00030548,31]
[394139979,1763317869711,-151.0,0.00030548,31]
[394139980,1763317869720,-190.103155,0.00030548,31]
[394139981,1763317869730,-190.103155,0.00030548,31]
[394139982,1763317869740,-190.103155,0.00030548,31]
[394139983,1763317869750,-190.103155,0.00030548,31]
[394139984,1763317869759,-180.92382504,0.00030658,5]
[394139985,1763317869769,-603.03412464,0.00030685,5]
[394139986,1763317869778,-1351.78,0.000307,14]
[394139987,1763317869787,-650.0,0.00030712,5]
[394139988,1763317869796,-750.0,0.0003076,5]
[394139989,1763317869806,-903.73,0.00030881,2]
[394139990,1763317869815,-18161.98,0.000309,7]
[394139991,1763317869826,-160.0,0.0003093,3]
[394139992,1763317869835,-1060.0,0.00030932,2]
[394139993,1763317869844,-550.0,0.00030964,5]
[394139994,1763317869854,-3838.54,0.00031,2]
[394139995,1763317869865,-750.0,0.0003126,5]
[394139996,1763317869874,-20232.45929748,0.00031295,10]
[394139997,1763317869883,-850.0,0.00031308,5]
[394139998,1763317869893,-1160.0,0.00031479,2]
[394139999,1763317869903,-407.54,0.000315,7]
[394140000,1763317869912,-301.53425214,0.00031512,5]
[394140001,1763317869921,-807.88942997,0.00031808,5]
[394140002,1763317869931,-950.0,0.00031856,5]
[394140003,1763317869940,-371.79417589,0.00031904,2]
[394140004,1763317869949,-903.73,0.00031976,2]
[394140005,1763317869959,-151667.39091905,0.00032,30]
[394140006,1763317869969,-400.59295362,0.00032,30]
[394140007,1763317869979,-151.0,0.00032,31]
[394140008,1763317869989,-151.0,0.00032,31]
[394140009,1763317869999,-294.321796,0.00032,31]
[394140010,1763317870009,-180.550553,0.00032,7]
[394140011,1763317870019,-180.550553,0.00032,7]
[394140012,1763317870030,-180.550553,0.00032,7]
[394140013,1763317870039,-180.550553,0.00032,7]
[394140014,1763317870048,-151.0,0.00032,2]
[394140015,1763317870058,-8925.31577,0.00032,31]
[394140016,1763317870068,-8925.31577,0.00032,31]
[394140017,1763317870077,-8925.31577,0.00032,31]
[394140018,1763317870086,-8925.31577,0.00032,31]
[394140019,1763317870095,-151.0,0.00032,31]
[394140020,1763317870104,-151.0,0.00032,31]
[394140021,1763317870114,-151.0,0.00032,31]
[394140022,1763317870124,-151.0,0.00032,31]
[394140023,1763317870133,-6214.4424842,0.00032025,2]
[394140024,1763317870143,-1260.0,0.00032027,2]
[394140025,1763317870152,-160.0,0.00032071,4]
[394140026,1763317870161,-1351.78,0.000322,14]
[394140027,1763317870170,-764.33158909,0.00032404,5]
[394140028,1763317870180,-700.0,0.00032445,7]
[394140029,1763317870189,-2149.0,0.00032529,2]